Cogmind - Beta 14 @@@ ROGUE MODE // 2024.10.24 @ 00:45:25 Player: Cherman0 Result: Destroyed by D-53 Grenadier with Mini Grenade Launcher Performance ------------- Evolutions (0) 0 Regions Visited (2) 400 Robots Destroyed (34) 170 Value Destroyed (706) 706 Prototype IDs (4) 80 Alien Tech Used (0) 0 Bonus (0) 0 TOTAL SCORE: 1356 Bonus ------- None Cogmind --------- Core Integrity 0/250 Matter 290/300 Energy 228/250 System Corruption 1% Temperature Cool (13) Movement Treading (320) Ox2 Location -10/Mines Parts ------- > --- POWER (1) -------- Ion Engine > --- PROPULSION (2) --- Light Treads Light Treads > --- UTILITY (2) ------ Huge Storage Unit Sensor Array > --- WEAPON (2) ------- Medium Laser > --- INVENTORY (25) --- Ion Engine Ion Engine Light Treads Wheel Wheel Heat Sink High-capacity Battery (250) Sensor Array Seismic Detector Seismic Detector Hacking Suite Hacking Suite Medium Laser Grenade Launcher Grenade Launcher Grenade Launcher Hammer Peak State ------------ > --- POWER ------------ Ion Engine > --- PROPULSION ------- Light Treads Light Treads > --- UTILITY ---------- Huge Storage Unit Seismic Detector > --- WEAPON ----------- Medium Laser Light Assault Rifle > --- INVENTORY -------- Ion Engine Light Treads Wheel Wheel High-capacity Battery Sensor Array Sensor Array Seismic Detector Light Armor Plating Hacking Suite Medium Laser Medium Laser Light Cannon Grenade Launcher Grenade Launcher Grenade Launcher Mining Laser Hammer [Rating: 9] Favorites ----------- Power Ion Engine Engine Ion Engine Propulsion Light Treads Treads Light Treads Leg Aluminum Leg Utility Huge Storage Unit Device Seismic Detector Storage Huge Storage Unit Protection Light Armor Plating Weapon Light Assault Rifle Energy Gun Medium Laser Ballistic Gun Light Assault Rifle Ballistic Cannon Light Cannon Launcher Grenade Launcher Special Weapon Mining Laser Impact Weapon Hammer Build | -11 -10 -10 ------- Run | Yrd Mat Min Slots Evolved . | . . . Power . | . . . Propulsion . | . . . Utility . | . . . Weapon . | . . . Parts Attached 49 | 3 32 14 Power 4 | . 3 1 Engine 4 | . 3 1 Core . | . . . Reactor . | . . . Propulsion 7 | 2 4 1 Treads 7 | 2 4 1 Leg . | . . . Wheel . | . . . Hover . | . . . Flight . | . . . Utility 19 | 1 14 4 Device 10 | 1 6 3 Storage 1 | . 1 . Processor . | . . . Hackware . | . . . Protection 8 | . 7 1 Artifact . | . . . Weapon 19 | . 11 8 Energy Gun 5 | . 3 2 Energy Cannon . | . . . Ballistic Gun 5 | . 2 3 Ballistic Cannon 3 | . . 3 Launcher 3 | . 3 . Special Weapon 1 | . 1 . Impact Weapon 2 | . 2 . Slashing Weapon . | . . . Piercing Weapon . | . . . Special Melee Weapon . | . . . Unidentified Prototypes . | . . . Parts Lost 4 | . . 4 Power . | . . . Propulsion . | . . . Utility 1 | . . 1 Weapon 3 | . . 3 Highest Loss Streak 2 | . . 2 To Critical Strikes . | . . . Average Slot Usage (%) 99 | . 99 99 Engine 13 | . 13 14 Treads 27 | . 27 28 Device 13 | . 13 11 Storage 14 | . 14 14 Energy Gun 12 | . 13 6 Ballistic Gun 13 | . 13 12 Ballistic Cannon 2 | . . 9 Peak Build Rating 9 | 7 9 9 Average Rating 8 | 6 8 8 On Entrance 7 | 6 7 9 Naked Turns . | . . . Heaviest Build 93 | 14 93 92 Greatest Support 40 | 40 40 40 Greatest Overweight (x) 4 | . 4 2 Average Overweight (x) 1 | . 1 2 Largest Inventory Capacity 25 | 8 25 25 Average Capacity 23 | 8 23 25 Most Carried 19 | 7 19 19 Average Carried 15 | 6 15 18 Final Capacity 25 | 8 25 25 Final Carried 19 | 5 19 17 Class Distribution -------------------- 100% | Mutant Dominant Class ---------------- Mutant | -10/Materials Mutant | -10/Mines Resources | -11 -10 -10 ----------- Run | Yrd Mat Min Matter Collected 883 | 233 437 213 Remotely . | . . . Salvage Created 1055 | 101 725 229 Parts 79 | 7 62 10 Haulers Intercepted 2 | . 2 . Recyclers Shooed 5 | . 5 . Parts Field Recycled . | . . . Retrieved Matter . | . . . Parts Self-Destructed . | . . . Prevented . | . . . Kills | -11 -10 -10 ------- Run | Yrd Mat Min Combat Hostiles Destroyed 22 | . 16 6 Guns 16 | . 14 2 Cannons 4 | . . 4 AOE 2 | . 2 . Classes Destroyed 9 | 2 7 . Worker 1 | . 1 . Builder 1 | . 1 . Tunneler 1 | 1 . . Hauler 2 | . 2 . Recycler 2 | 1 1 . Operator 2 | . 2 . Watcher 3 | . 3 . Swarmer 9 | . 9 . Grunt 13 | . 7 6 Best Kill Streak 3 | 2 3 3 Combat Bots Only 3 | . 3 3 Max Kills in Single Turn 1 | 1 1 1 Gunslinging . | . . . Exploded 1 | . 1 . Melee . | . . . Uniques/NPCs Destroyed . | . . . Combat | -11 -10 -10 -------- Run | Yrd Mat Min Hostile Shots Fired 109 | . 55 54 Missed 23 | . 16 7 Damage Taken 1188 | . 431 757 Core 251 | . 61 190 Absorbed by Shields . | . . . Regen/Repaired (Parts) 271 | . 271 . Core Remaining (%) 100 | 100 . . Volleys Fired 95 | 3 65 27 Largest 2 | 2 2 2 Hottest 100 | 70 70 100 Shots Fired 179 | 6 124 49 Gun 158 | 6 118 34 Cannon 15 | . . 15 Launcher 6 | . 6 . Special . | . . . Kinetic 95 | 3 59 33 Thermal 78 | 3 59 16 Explosive 6 | . 6 . Electromagnetic . | . . . Robot Hit Streak 20 | 2 20 9 Robot Miss Streak 4 | 1 4 3 Penetration Max . | . . . Secondary Targets 3 | . 3 . Max Gunslinging Chain 1 | . 1 . Shots Hit Robots 121 | 4 79 38 Core Hits 67 | 4 48 15 Critical Kills . | . . . Critical Parts Destroyed 1 | . 1 . Critical Strikes 12 | 1 9 2 Burn 10 | 1 8 1 Destroy 1 | . 1 . Blast 1 | . . 1 Melee Attacks 4 | . 4 . Impact 4 | . 4 . Slashing . | . . . Piercing . | . . . Sneak Attacks 1 | . 1 . Combat Hostiles . | . . . Follow-up Attacks . | . . . Damage Inflicted 1606 | 40 1064 502 Guns 1124 | 40 823 261 Cannons 235 | . . 235 Explosions 197 | . 197 . Melee 36 | . 36 . Ramming 14 | . 8 6 Kinetic 665 | 16 315 334 Thermal 694 | 24 508 162 Explosive 197 | . 197 . Electromagnetic . | . . . Impact 36 | . 36 . Slashing . | . . . Piercing . | . . . Highest Corruption 1 | . 1 1 Average Corruption 1 | . 1 1 Corruption Purged . | . . . Corruption Blocked . | . . . Effects 20 | . 10 10 Message Errors 10 | . 6 4 Matter Fused 4 | . 3 1 Heat Flow Errors 2 | . . 2 Energy Discharges 1 | . 1 . Parts Rejected 1 | . . 1 Data Loss (major) 2 | . . 2 Overload Shots . | . . . Overflow Damage . | . . . Projectiles . | . . . Explosions . | . . . Melee . | . . . Knockbacks 3 | . . 3 Impact . | . . . Kinetic 3 | . . 3 Secondary . | . . . Self-Inflicted Damage . | . . . Shots . | . . . Rammed 6 | . 2 4 Targets Rammed 6 | . 2 4 Kicked . | . . . Crushed . | . . . Highest Temperature 315 | 50 203 315 Average Temperature 73 | 26 48 125 Received Heat Transfer 474 | . 144 330 Effects 5 | . . 5 Shutdowns 1 | . . 1 Energy Bleed 2 | . . 2 Short Circuit 1 | . . 1 Damage (minor) 1 | . . 1 Siege Activations . | . . . Robots Corrupted . | . . . Combat Hostiles . | . . . Parts Fried . | . . . Impact Corruptions . | . . . Robots Melted . | . . . Combat Hostiles . | . . . Parts Melted 6 | 1 4 1 Heat Transferred 2775 | 148 2072 555 Parts Sabotaged . | . . . Parts Stolen . | . . . Parts Stripped . | . . . Power Chain Reactions . | . . . Alert | -11 -10 -10 ------- Run | Yrd Mat Min Peak Influence 179 | 10 179 111 Initial 61 | . 6 61 Average 85 | 8 95 53 Maximum Alert Level . | . . . Low Security (%) 100 | 100 100 100 Level 1 . | . . . Level 2 . | . . . Level 3 . | . . . Level 4 . | . . . Level 5 . | . . . High Security . | . . . Max Security . | . . . Squads Dispatched 2 | . 2 . Investigation 1 | . 1 . Extermination . | . . . Reinforcement 1 | . 1 . Assault . | . . . Garrison . | . . . Intercept . | . . . Searches Triggered . | . . . Construction Impeded . | . . . Haulers Reinforced . | . . . Active Scanning Responses . | . . . Cargo Convoy Interrupts . | . . . Stealth | -11 -10 -10 --------- Run | Yrd Mat Min Distress Signals . | . . . Communications Jammed . | . . . Distress Signals . | . . . Times Spotted 32 | . 24 8 Peak Tracking Total 3 | . 3 2 Tactical Retreats 1 | . 1 . Traps | -11 -10 -10 ------- Run | Yrd Mat Min Traps Triggered 3 | . 3 . Indirectly . | . . . Trap Hack Attempts . | . . . Triggered . | . . . Disarmed . | . . . Reprogrammed . | . . . Reused . | . . . Traps Extracted . | . . . Installed . | . . . Triggered . | . . . Machines | -11 -10 -10 ---------- Run | Yrd Mat Min Machines Disabled . | . . . Max in Single Turn . | . . . Machines Repaired . | . . . Machines Dismantled . | . . . Machines Sabotaged . | . . . Overloaded Fab Kills . | . . . Hacking | -11 -10 -10 --------- Run | Yrd Mat Min Machines Accessed 9 | . 9 . Terminals 7 | . 7 . Fabricators . | . . . Repair Stations 1 | . 1 . Recycling Units 1 | . 1 . Scanalyzers . | . . . Garrison Access . | . . . Total Hacks 38 | . 38 . Successful 28 | . 28 . Failed 10 | . 10 . Catastrophic 1 | . 1 . Database Lockouts . | . . . Manual 24 | . 24 . Terminals 29 | . 29 . Fabricators . | . . . Repair Stations 8 | . 8 . Recycling Units 1 | . 1 . Scanalyzers . | . . . Garrison Access . | . . . Terminal Hacks 12 | . 12 . Robot Schematic 1 | . 1 . Robot Analysis 7 | . 7 . Prototype ID Bank 4 | . 4 . Fabricator Hacks . | . . . Repair Station Hacks 8 | . 8 . Scan Component 4 | . 4 . Repair 4 | . 4 . Recycling Unit Hacks . | . . . Scanalyzer . | . . . Garrison Access Hacks . | . . . Unauthorized Hacks 8 | . 8 . Terminals 7 | . 7 . Botnet 1 | . 1 . Operators 1 | . 1 . Skim 5 | . 5 . Fabricators . | . . . Repair Stations . | . . . Recycling Units 1 | . 1 . Tunnel 1 | . 1 . Scanalyzers . | . . . Garrison Access . | . . . Data Cores Recovered . | . . . Used . | . . . Hacking Detections 8 | . 8 . Full Trace Events . | . . . Feedback Events . | . . . Feedback Blocked . | . . . Robot Schematics Acquired 1 | . 1 . Robots Built . | . . . Authchips . | . . . Time . | . . . Total Robot Build Rating . | . . . Part Schematics Acquired . | . . . Parts Built . | . . . Authchips . | . . . Time . | . . . Total Part Build Rating . | . . . Parts Repaired 4 | . 4 . Time 104 | . 104 . Parts Recycled . | . . . Recycled Matter . | . . . Retrieved Matter . | . . . Retrieved Components . | . . . Parts Scanalyzed . | . . . Part Schematics Acquired . | . . . Parts Damaged . | . . . Bothacking | -11 -10 -10 ------------ Run | Yrd Mat Min Used RIF Installer . | . . . Robots Hacked . | . . . Non-combat . | . . . Combat . | . . . Robot Hacks Applied . | . . . Relay Couplers Released . | . . . Fabnet Peak Effective % . | . . . Robots Rewired . | . . . Allies Hacked . | . . . Hacks Repelled . | . . . Allies | -11 -10 -10 -------- Run | Yrd Mat Min Total Allies . | . . . Largest Group . | . . . Highest-Rated Group . | . . . Highest-Rated Ally . | . . . Total Orders . | . . . Ally Attacks . | . . . Total Damage . | . . . Kills . | . . . Allies Corrupted . | . . . Allies Melted . | . . . Intel | -11 -10 -10 ------- Run | Yrd Mat Min Robot Analysis Total 7 | . 7 . Derelict Logs Recovered . | . . . Drone Launches . | . . . Drone Recoveries . | . . . Exploration | -11 -10 -10 ------------- Run | Yrd Mat Min Turns Passed 4614 | 31 3582 1001 Spaces Moved 1346 | 11 1056 279 Core . | . . . Treads 1346 | 11 1056 279 Legs . | . . . Wheels . | . . . Hover . | . . . Flight . | . . . Fastest Speed 160 | 160 160 320 Average Speed 295 | 160 290 320 Slowest Speed 480 | 160 480 320 Overloaded Moves . | . . . Propulsion Burnouts . | . . . Robots Hopped . | . . . Cave-ins Triggered . | . . . Exploration Rate (%) 54 | 2 96 64 Regions Visited 2 Branch Regions 1 Pre-discovered Areas 2 | . 2 . Known Exits Taken . | . . . Unknown Exits Taken 2 | 1 1 . Scrap Searched 1 | . . 1 Spaces Dug 2 | . 2 . Terrain Destroyed 39 | . 39 . Melee 2 | . 2 . Projectile . | . . . AOE 37 | . 37 . Terrain Rammed . | . . . Walls Destroyed . | . . . Machines Disabled . | . . . Actions | -11 -10 -10 --------- Run | Yrd Mat Min Total 1789 | 19 1441 329 Wait 260 | . 256 4 Move 1344 | 10 1055 279 Hop . | . . . Pick Up 21 | 1 20 . Fast Attach 9 | 1 6 2 Attach 6 | . 4 2 Detach 2 | . 2 . Swap 34 | 2 22 10 Drop 8 | 2 5 1 Fire 95 | 3 65 27 Melee 4 | . 4 . Ram . | . . . Kick . | . . . Crush 6 | . 2 4 Escape Stasis . | . . . Rewire . | . . . Trap . | . . . Miscellaneous . | . . . Route ------- -11/Scrapyard -10/Materials (discovered 5 exits: [*Mat x3] / [*Min x2]) -10/Mines (discovered 2 exits: [*Mat] / *Sub) History --------- Turn | Location | Event 13 | -11/Scrapyard | Discovered new exit (range 3) 32 | -11/Scrapyard | Entered Materials 319 | -10/Materials | Build established: Mutant 572 | -10/Materials | Discovered new exit (range 15) 1204 | -10/Materials | Discovered new exit (range 14) 2009 | -10/Materials | Discovered new exit (range 7) 2323 | -10/Materials | Discovered new exit (range 8) 2442 | -10/Materials | Repaired Lgt. Treads 2469 | -10/Materials | Repaired Lgt. Treads 2497 | -10/Materials | Repaired Lgt. Treads 2524 | -10/Materials | Repaired Ion Engine 2661 | -10/Materials | Learned Storage interactive machine intel 2689 | -10/Materials | Learned Storage garrison access intel 2707 | -10/Materials | Learned 2 Mines zone layouts 2716 | -10/Materials | Discovered new exit (range 16) 2718 | -10/Materials | Learned 4 Recycling zone layouts 2720 | -10/Materials | Learned Storage security intel 2721 | -10/Materials | Learned location of 3 exits from Materials 2731 | -10/Materials | Learned location of Mines (-9) 3614 | -10/Materials | Entered Mines 3615 | -10/Mines | Identified exit to Subcaves 4177 | -10/Mines | Discovered new exit (range 11) 4285 | -10/Mines | Core integrity fell below 50% 4587 | -10/Mines | Assembled infested the area 4612 | -10/Mines | Core integrity fell below 20% 4615 | -10/Mines | Destroyed by D-53 Grenadier with Mini Grenade Launcher Last Messages --------------- 04305_ Acquired 12 matter. 04318_ Acquired Heat Sink. 04320_ Acquired 29 matter. 04327_ Acquired 1 matter. 04390_ System corrupted: Substantial component data lost. 04407_ DGZR1B75YVUK9PZI8YIX0TNO7V6>% 04410_ Lgt. Cannon destroyed. 04420_ Lgt. Nuclear Core melted. 04420_ G-47 Trooper destroyed. 04423_ Acquired 22 matter. 04435_ Slammed into R-06 Scavenger. 04587_ ALERT: Infestation in the mines, dispatching Demolisher response squad. 04611_ C-30 ARC bursts open, deploying its payload. 04611_ D-53 Grenadier unfolds itself. 04611_ Lgt. Assault Rifle destroyed. 04611_ T-07 Excavator destroyed. 04614_ D-53 Grenadier suffers critical hit (Burn). 04615_ SHOP.Sys disabled. 04615_ Med. Laser destroyed. Map ----- +----------------------------------------------------+ | < #?????????????????????????????????? | | ###?????????????????????????????????? | | ##???????????????????????????????????? | | ## """ ##???????????????????????????????????? | | #?# """ ##??????????????????????????????????? | | ??# """ ??????????????????????????????????? | | #?# ????????????????????????????????? | | #??# ##????????????????????????????????? | | #???# ???????????????????????????????????? | | ?????# ????????????????????????????????????? | | ?????# #????????????????????????????????????? | | ????## ##???????????""""##?????### ####?????? | | ????# #######????? "#?????# #?????? | | ????# #????? ?" "#####?# #### #?????? | | ????# #????? ### ### #??# #?????? | | ???## ###### #######""### ## #?## ###???? | | ??## #????# ? ### ##??? | | ### #????# %d ###### ##?? | | #????####### d ####????#? #?? | | #???????## ##???????## #?? | | #??#### # ##????????### #?? | | #?## ### ##?????????## ##?? | | ##?# # ##?????????## #??? | | #??# # #??????????###??? | | #??# ## ##???????????????? | | #??## #??# @ ####????????????? | | ## #???## #??# t ?????????? | | ?### #???##???## #??????? | | ???## ?????????# ### #??????? | | ????# ????????#u #???#>##??????? | | ????? ???????? #???###???????? | | ?????# #??????? #?????????????? | | ??????# ????????? ##?????????????? | | ???????#???????????## ########??????????????? | | ????????????????????#####?????????????????????? | | ??????????????????????????????????????????????? | | | | | | | | | | | | | | | | | | | | | | | | | | | | | +----------------------------------------------------+ Best States ------------- Heat Dissipation 35 Energy Generation 10 Energy Capacity 250 Matter Stores 300 Matter Capacity 300 Sight Range 16 Robot Scan Range 14 Terrain Scan Density 10 Armor Coverage 150 Evasion (%) 40 Recoil Reduction 2 Item Schematics ----------------- None Robot Schematics ------------------ M-13 Machinist | -10/Materials | Hacked Fabricated ------------ Nothing Alien Tech Used ----------------- None Achievements -------------- None Challenges ------------ None Game ------ Seed BarrageLayeredCorpse Manual? 0 Play Time 00:28:13 Cumulative 174.3 hours Start 2024.10.23 @ 22:04:52 End 2024.10.24 @ 00:45:25 Sessions 1 Manual Loads 0 Difficulty Rogue Special Mode None Game No. 88 Rogue 88 Adventurer 0 Explorer 0 Win Type - Total 1 Types 0/0/0/1/0/0/0/0/0 Lore% 58 Gallery% 67 Achievement% 54 Wizard Run 0 Options --------- Layout 0 ASCII 0 Keyboard 0 Movement Numpad Keybinds 1 Fullscreen 2 Font 18/X11 Map View 76x50 Zoom Use 0% Tactical HUD 1 Map Filters NONE Filters NONE Steam 1 RUN: afb4a346-45fc-46e4-8fe7-6fdb9f6c7170